bitfinex/quotes_ETHUSD_20240822
["timestamp","ask_amount","ask_price","bid_price","bid_amount"]
[1724348815839,0.1198783,2612.6,2612.5,1.648]
[1724348816636,0.1198783,2612.6,2612.2,3.82816]
[1724348816839,3.82747,2612.7,2612.3,4.27075198]
[1724348817939,3.82717,2612.9,2612.4,3.82781]
[1724348818142,3.82731,2612.8,2612.3,6.85731198]
[1724348818340,3.82731,2612.8,2612.4,4.8963262]
[1724348818341,0.1198783,2612.8,2612.4,4.8963262]
[1724348818502,0.1198783,2612.8,2612.6,3.82745]
[1724348818702,2.2694,2613.0,2612.6,3.82745]
[1724348819003,2.2694,2613.0,2612.6,4.69982962]
[1724348819202,3.82666,2613.3,2612.7,3.82744]
[1724348819203,2.2719,2613.2,2612.7,3.82744]
[1724348819403,0.1198783,2612.9,2612.6,4.69997962]
[1724348819838,7.65385,2613.1,2612.6,4.69997962]
[1724348820039,0.1198783,2612.8,2612.6,4.69997962]
[1724348820245,3.82689,2613.1,2612.7,0.85276296]
[1724348820402,3.82689,2613.1,2612.6,3.8276]
[1724348820600,3.82689,2613.1,2612.7,3.82744]
[1724348820827,0.1198783,2613.0,2612.7,3.82744]
[1724348821236,0.1198783,2613.0,2612.6,3.82748]
[1724348821759,0.1198783,2613.0,2612.7,3.82742]
[1724348821920,0.1198783,2613.0,2612.7,4.59291]
[1724348822144,2.2719,2613.2,2612.8,3.82722]
[1724348822320,3.82646,2613.4,2612.8,3.82722]
[1724348822321,0.1198783,2612.9,2612.8,6.11761]
[1724348822518,6.07988,2613.5,2613.0,3.82699]
[1724348822950,2.2536,2613.5,2613.0,3.82699]
[1724348823241,2.2536,2613.5,2613.1,3.82679]
[1724348824546,6.07995,2613.5,2612.9,7.65408]
[1724348824912,6.07995,2613.5,2613.0,3.82697]
[1724348825136,6.07995,2613.5,2613.0,5.28563]
[1724348825846,2.2536,2613.5,2613.1,3.82679]
[1724348826050,6.20792,2613.7,2613.3,3.82656]
[1724348828948,6.20792,2613.7,2613.2,3.82671]
[1724348830519,10.03401,2613.7,2613.2,3.82671]
[1724348830853,0.12176044,2613.6,2613.2,3.82671]
[1724348831023,0.12176044,2613.6,2613.2,5.359356]
[1724348831615,0.12176044,2613.6,2613.5,10.09096]
[1724348831816,6.14143,2614.2,2613.5,10.09096]
[1724348831817,6.14143,2614.2,2613.6,3.82611]
[1724348832017,0.12182231,2614.1,2613.7,7.77998]
[1724348832551,0.12182231,2614.1,2613.9,3.82569]
[1724348832953,2.3016,2614.3,2613.9,3.82569]
[1724348833167,6.12674,2614.3,2613.9,3.82569]
[1724348833358,0.12182231,2614.2,2613.9,3.82569]
[1724348833860,0.12182231,2614.1,2613.9,3.82569]
[1724348834061,6.12674,2614.3,2613.9,5.1023069]
[1724348834266,0.12182231,2614.0,2613.9,5.1023069]
[1724348834468,6.12674,2614.3,2613.9,5.1023069]
[1724348834627,0.12182231,2614.0,2613.9,5.1023069]
[1724348834828,9.95197,2614.3,2613.9,1.2766169]
[1724348835071,3.94710231,2614.2,2613.9,1.2766169]
[1724348835579,3.82544,2614.1,2613.9,1.2766169]
[1724348835778,3.82544,2614.1,2613.7,7.77998]
[1724348836483,0.12182231,2614.0,2613.7,7.77998]
[1724348837280,0.12182231,2614.0,2613.7,7.77996]
[1724348838684,3.82544,2614.1,2613.7,7.77996]
[1724348838869,3.82544,2614.1,2613.7,5.114622]
[1724348839181,2.3289,2614.0,2613.7,5.114622]
[1724348839665,2.3289,2614.0,2613.7,8.940592]
[1724348841412,2.3289,2614.0,2613.7,1.160622]
[1724348841555,3.82592,2613.8,2613.4,3.954]
[1724348841756,2.3162,2613.9,2613.4,3.82636]
[1724348841757,6.14203,2613.9,2613.4,3.82636]
[1724348842060,6.14203,2613.9,2613.5,1.501284]
[1724348842259,0.11849863,2613.8,2613.5,1.501284]
[1724348843012,6.14203,2613.9,2613.5,1.501284]
[1724348845674,2.3162,2613.9,2613.5,5.327484]
[1724348845869,0.11849863,2613.8,2613.6,1.3107844]
[1724348846055,2.3162,2613.9,2613.6,1.3107844]
[1724348846262,0.11849863,2613.7,2613.6,5.1369244]
[1724348846459,2.3162,2613.9,2613.6,5.1369244]
[1724348846691,0.11849863,2613.7,2613.6,5.1369244]
[1724348846863,2.3162,2613.9,2613.6,5.1369244]
[1724348847262,0.11849863,2613.8,2613.6,1.3107844]
[1724348848566,0.11849863,2613.8,2613.7,1.646]
[1724348850708,3.82541,2614.1,2613.7,1.646]
[1724348850888,3.82541,2614.1,2614.0,1.646]
[1724348856886,6.12619,2614.2,2614.0,1.646]
[1724348857079,6.25581,2614.4,2614.0,1.646]
[1724348857319,3.82486,2614.5,2614.3,1.646]
[1724348857537,3.82486,2614.5,2614.1,0.54717]
[1724348857538,3.82486,2614.5,2614.4,1.646]
[1724348857727,6.25538,2614.6,2614.4,1.646]
[1724348858412,3.82468,2614.6,2614.4,1.646]
[1724348858720,3.82468,2614.6,2614.1,14.39653]
[1724348858892,3.82468,2614.6,2614.2,1.439653]
[1724348859289,3.82489,2614.5,2614.2,1.439653]
[1724348859715,6.3229,2614.4,2614.1,0.54717]
[1724348860884,0.11864121,2614.3,2614.1,0.54717]
[1724348861691,3.94383121,2614.3,2614.1,0.54717]
[1724348861907,3.94383121,2614.3,2613.9,3.8257]
[1724348862308,3.94383121,2614.3,2613.8,3.948]
[1724348862309,3.94383121,2614.3,2613.8,7.77383]
[1724348862537,3.82532,2614.2,2613.8,3.948]
[1724348862737,7.65039,2614.3,2613.8,7.77383]
[1724348863033,0.11864121,2614.1,2613.9,2.135343]
[1724348863221,3.82519,2614.3,2613.9,2.135343]
[1724348863399,0.11864121,2614.0,2613.9,2.135343]
[1724348863599,7.6504,2614.3,2613.9,2.135343]
[1724348864104,0.11864121,2614.2,2613.9,2.135343]
[1724348864307,3.82519,2614.3,2613.9,2.135343]
[1724348864662,0.11864121,2614.1,2613.9,2.135343]
[1724348864940,0.11864121,2614.0,2613.9,2.135343]
[1724348865242,3.82519,2614.3,2613.9,2.135343]
[1724348865733,0.11886441,2614.2,2613.9,2.135343]
[1724348866036,3.82494,2614.5,2613.9,5.961023]
[1724348866221,0.11886441,2614.1,2613.9,5.961023]
[1724348866402,3.82497,2614.4,2613.9,5.961023]
[1724348866603,0.11886441,2614.0,2613.9,5.961023]
[1724348866827,3.82497,2614.4,2613.9,5.961023]
[1724348867262,0.11886441,2614.3,2613.9,5.961023]
[1724348867435,0.11886441,2614.3,2614.0,3.82549]
[1724348867774,7.64986,2614.5,2614.0,3.82549]
[1724348867987,0.11886441,2614.2,2614.0,3.82549]
[1724348868167,7.64986,2614.5,2614.1,0.9786513]
[1724348868774,2.27439837,2614.6,2614.2,3.82518]
[1724348869102,6.09907837,2614.6,2614.1,3.82527]
[1724348869387,9.92385837,2614.6,2614.1,3.82527]
[1724348869553,3.82483,2614.5,2614.1,3.82527]
[1724348871396,3.82483,2614.5,2614.2,0.382527]
[1724348874169,7.64975,2614.5,2614.0,3.82554]
[1724348874354,7.64979,2614.5,2614.0,3.82554]
[1724348874964,3.82499,2614.4,2614.0,3.82554]
[1724348875469,6.28832,2614.3,2613.8,7.77381]
[1724348875671,6.28832,2614.3,2613.7,11.18597]
[1724348875672,3.82535,2614.2,2613.7,11.18597]
[1724348876438,3.82535,2614.2,2613.8,3.82583]
[1724348876439,0.11883961,2614.1,2613.8,3.82583]
[1724348876672,0.11883961,2614.1,2613.8,5.562981]
[1724348878077,6.28832,2614.3,2613.8,9.388751]
[1724348878444,0.11883961,2614.2,2613.8,9.388751]
[1724348878644,6.28832,2614.3,2613.8,9.388751]
[1724348878878,0.11883961,2614.2,2613.8,9.388701]
[1724348879086,6.28832,2614.3,2613.9,0.8130793]
[1724348879280,0.11883961,2614.1,2613.9,0.8130793]
[1724348879459,6.28831,2614.3,2613.9,0.8130793]
[1724348879657,0.11883961,2614.2,2613.9,4.6387693]
[1724348879848,6.28831,2614.3,2613.9,4.6387693]
[1724348880040,0.11883961,2614.2,2613.9,4.6387693]
[1724348880243,6.28831,2614.3,2613.9,4.6387693]
[1724348880483,6.28831,2614.3,2614.2,1.646]
[1724348881150,3.82497,2614.4,2614.2,1.646]
[1724348881477,9.93602,2614.5,2614.2,1.646]
[1724348881699,3.82473,2614.6,2614.4,1.646]
[1724348881848,6.29863,2614.6,2614.4,1.646]
[1724348884185,2.4739,2614.6,2614.4,1.646]
[1724348884387,7.64926,2614.7,2614.4,1.646]
[1724348884582,3.82462,2614.7,2614.4,1.646]
[1724348884782,3.82462,2614.7,2614.6,1.646]
[1724348885918,7.64812,2615.1,2614.6,4.1334]
[1724348886213,3.82404,2615.1,2615.0,1.646]
[1724348889132,3.82404,2615.1,2614.6,2.4874]
[1724348889345,6.2568,2614.7,2614.2,7.36]
[1724348889555,2.4322,2614.7,2613.9,6.82561]
[1724348889861,0.11501262,2614.6,2614.1,1.646]
[1724348890203,3.82469,2614.6,2614.3,1.646]
[1724348890638,3.93995262,2614.5,2614.3,1.646]
[1724348890843,0.11501262,2614.5,2614.3,1.646]
[1724348891619,3.93985262,2614.5,2614.3,1.646]
[1724348892222,0.11501262,2614.5,2614.3,1.646]
[1724348892440,0.11501262,2614.5,2614.0,3.82554]
[1724348892708,0.11501262,2614.5,2613.9,10.7746]
[1724348892709,3.93985262,2614.5,2614.1,1.460014]
[1724348893122,0.11501262,2614.5,2614.1,1.460014]
[1724348894225,0.11501262,2614.5,2614.2,3.82524]
[1724348894572,2.4322,2614.7,2614.3,0.5285254]
[1724348894719,0.11501262,2614.4,2614.2,3.82524]
[1724348894922,2.4322,2614.7,2614.2,3.82524]
[1724348895122,7.64893,2614.8,2614.2,3.82524]
[1724348895123,0.11501262,2614.3,2614.2,11.59948]
[1724348895369,6.23725,2614.9,2614.3,3.825]
[1724348895654,3.82446,2614.8,2614.2,10.14544]
[1724348895854,3.82446,2614.8,2614.2,9.171332]
[1724348896638,3.82456,2614.7,2614.2,9.171332]
[1724348896844,3.82478,2614.6,2614.2,1.397092]
[1724348897251,2.4547,2614.5,2614.2,1.397092]
[1724348897458,6.27952,2614.5,2614.2,1.397092]
[1724348897652,3.82497,2614.4,2613.9,10.77469]
[1724348898064,3.82512,2614.3,2613.7,13.49255]
[1724348898445,3.82512,2614.3,2613.7,11.18585]
[1724348898637,6.27962,2614.5,2613.8,1.513485]
[1724348898839,3.82509,2614.4,2613.8,5.339325]
[1724348899164,3.82517,2614.3,2613.8,5.339325]
[1724348899468,2.3992,2614.2,2613.8,5.339325]
[1724348900777,2.3992,2614.2,2613.9,3.82568]
[1724348900935,6.30109,2614.4,2614.0,0.5339165]
[1724348901361,10.1262,2614.4,2613.9,3.82568]
[1724348901562,3.82512,2614.3,2613.8,5.339315]
[1724348902037,2.476,2614.4,2613.8,1.513485]
[1724348902237,3.82535,2614.2,2613.7,11.18596]
[1724348902468,2.476,2614.1,2613.7,11.18596]
[1724348902664,2.476,2614.1,2613.7,3.82596]
[1724348902943,0.11496912,2614.0,2613.7,3.82596]
[1724348903174,0.11496912,2614.0,2613.8,0.382596]
[1724348903568,0.11496912,2614.0,2613.7,3.82591]
[1724348903765,0.11496912,2614.0,2613.5,8.327454]
[1724348903979,3.82577,2613.9,2613.4,3.82642]
[1724348904182,2.3863,2613.7,2613.0,10.10171]
[1724348904382,0.23863,2613.6,2613.1,3.82673]
[1724348904682,0.11496912,2613.6,2613.1,3.82673]
[1724348904839,0.11496912,2613.6,2613.1,7.65351]
[1724348905043,6.21229,2613.7,2613.2,3.82667]
[1724348905267,0.11479513,2613.5,2613.2,3.82667]
[1724348905468,0.11479513,2613.4,2613.2,3.82667]
[1724348905667,6.21229,2613.7,2613.2,3.82667]
[1724348905668,6.21229,2613.7,2613.2,5.21949]
[1724348906073,0.11479513,2613.6,2613.2,5.21949]
[1724348907562,0.11479513,2613.6,2613.2,5.21393221]
[1724348907886,0.11479513,2613.6,2613.4,2.3409]
[1724348908179,7.65156,2613.9,2613.4,2.3409]
[1724348908386,3.82578,2613.9,2613.4,2.3409]
[1724348908585,0.11479513,2613.8,2613.5,3.82628]
[1724348908747,3.82563,2614.0,2613.5,3.82628]
[1724348908954,0.11454651,2613.7,2613.6,0.6923201]
[1724348909185,3.82563,2614.0,2613.6,0.6923201]
[1724348909388,0.11454651,2613.7,2613.5,3.82628]
[1724348909582,3.82563,2614.0,2613.5,3.82628]
[1724348909787,0.11454651,2613.6,2613.5,3.82628]
[1724348910085,3.82563,2614.0,2613.5,3.82628]
[1724348910511,3.94027651,2613.9,2613.4,0.756021]
[1724348910686,2.4492,2613.8,2613.4,0.756021]
[1724348910892,6.27505,2613.8,2613.4,0.756021]
[1724348911051,6.27505,2613.8,2613.3,7.77549]
[1724348911253,0.11454651,2613.7,2613.3,7.77549]
[1724348911491,3.94057651,2613.7,2613.3,3.949]
[1724348911659,3.94057651,2613.7,2613.1,3.82679]
[1724348911660,3.82603,2613.7,2613.1,3.82679]
[1724348912035,0.11454651,2613.6,2613.2,1.013829]
[1724348912195,0.11454651,2613.6,2613.2,4.840519]
[1724348912394,3.82603,2613.7,2613.2,4.840519]
[1724348913999,3.82603,2613.7,2613.2,1.013829]
[1724348914590,3.82603,2613.7,2613.3,0.4840589]
[1724348914781,0.11416737,2613.6,2613.3,0.4840589]
[1724348915902,0.11416737,2613.6,2613.3,4.3105889]
[1724348916096,6.27505,2613.8,2613.3,4.3105889]
[1724348916297,0.11416737,2613.7,2613.3,4.3105889]
[1724348916587,6.27505,2613.8,2613.3,4.3105889]
[1724348916988,0.11416737,2613.7,2613.3,4.3105889]
[1724348917195,6.27505,2613.8,2613.3,4.3105889]
[1724348917389,0.11416737,2613.6,2613.3,4.3105889]
[1724348917577,6.27505,2613.8,2613.4,0.53244179]
[1724348917778,0.11416737,2613.5,2613.1,7.65363]
[1724348917977,3.82615,2613.6,2613.1,3.82679]
[1724348918190,3.82615,2613.6,2613.1,7.65359]
[1724348918390,0.11416737,2613.5,2613.1,7.65359]
[1724348919308,0.11416737,2613.5,2613.1,3.8268]
[1724348920365,2.2647,2613.4,2613.0,3.949]
[1724348920801,0.11416737,2613.3,2613.0,3.949]
[1724348922413,0.11416737,2613.3,2613.0,7.77598]
[1724348922629,0.11416737,2613.3,2613.0,9.236298]
[1724348923579,0.11416737,2613.3,2613.0,5.409318]
[1724348924585,0.11416737,2613.3,2613.0,13.063238]
[1724348924779,0.11416737,2613.3,2613.0,13.063198]
[1724348925184,0.11416737,2613.3,2613.0,8.62814028]
[1724348925592,0.11416737,2613.3,2613.0,12.45508028]
[1724348925798,0.11416737,2613.3,2613.0,12.45506028]
[1724348926002,0.11416737,2613.3,2613.0,8.62814028]
[1724348926516,0.11416737,2613.3,2613.2,1.647]
[1724348926917,2.55996737,2613.3,2613.2,1.647]
[1724348928625,2.55996737,2613.3,2612.9,3.82716]
[1724348930319,6.38656737,2613.3,2612.8,6.82723]
[1724348930494,7.40786911,2613.3,2612.8,6.82723]
[1724348930694,2.421,2613.0,2612.6,15.01498]
[1724348931023,0.11387516,2612.9,2612.6,11.18746]
[1724348931322,2.421,2613.0,2612.6,15.01497]
[1724348931493,2.421,2613.0,2612.6,11.18746]
[1724348931695,2.421,2613.0,2612.6,7.36]
[1724348931696,3.82718,2612.9,2612.6,7.36]
[1724348931907,2.59977516,2612.8,2612.6,7.36]
[1724348932083,2.59977516,2612.8,2612.4,3.82778]
[1724348933347,2.4859,2612.8,2612.4,3.82778]
[1724348934484,6.31329,2612.8,2612.3,3.828]
[1724348934689,0.11355177,2612.7,2612.3,3.828]
[1724348935004,6.31329,2612.8,2612.2,17.058233]
[1724348935386,6.31329,2612.8,2612.3,3.82803]
[1724348937059,6.31329,2612.8,2612.0,9.10858]
[1724348937060,3.82748,2612.7,2612.0,9.10858]
[1724348937223,2.425,2612.6,2612.1,3.82832]
[1724348937527,3.8279,2612.4,2611.9,3.82852]
[1724348937685,2.425,2612.3,2611.9,3.82852]
[1724348937887,0.11355177,2612.2,2611.8,3.952]
[1724348938135,0.11355177,2612.2,2611.2,0.40222139]
[1724348938136,3.82849,2612.0,2611.5,3.82907]
[1724348938491,2.2623,2611.8,2611.3,3.82939]
[1724348938791,2.2623,2611.8,2611.1,3.82973]
[1724348938792,3.82901,2611.7,2611.1,3.82973]
[1724348939113,3.9421947,2611.7,2611.2,0.59913892]
[1724348939423,0.1131847,2611.7,2611.1,3.82971]
[1724348939628,0.1131847,2611.7,2611.2,3.82961]
[1724348939993,0.1131847,2611.7,2611.1,4.852341]
[1724348940324,3.82922,2611.5,2610.9,7.78205]
[1724348940826,3.82781,2612.5,2610.9,3.83005]
[1724348940827,2.3689,2611.3,2610.9,3.83005]
[1724348941189,2.3689,2611.3,2610.9,3.82998]
[1724348941390,2.3689,2611.3,2610.9,0.766031]
[1724348941603,2.3689,2611.3,2610.5,19.44]
[1724348942015,3.82978,2611.2,2610.6,3.83053]
[1724348942267,3.82978,2611.2,2610.5,23.27068]
[1724348942268,3.82981,2611.1,2610.5,23.27068]
[1724348942464,3.94186966,2611.2,2610.5,23.27068]
[1724348942669,2.3711,2611.0,2610.3,3.83091]
[1724348942856,3.83022,2610.9,2610.3,3.83091]
[1724348943178,3.83024,2610.8,2610.1,3.83117]
[1724348943383,3.83024,2610.8,2610.2,3.83112]
[1724348943549,0.11208966,2610.7,2610.2,4.992549]
[1724348945259,0.11208966,2610.7,2610.3,3.83096]
[1724348945475,0.11208966,2610.7,2610.4,3.83073]
[1724348945649,6.2011,2611.0,2610.4,3.83073]
[1724348945856,0.11208966,2610.6,2610.3,3.83096]
[1724348946188,0.11208966,2610.5,2610.4,4.3300289]
[1724348946387,6.2011,2611.0,2610.4,3.83079]
[1724348946597,0.11208966,2610.5,2610.4,3.83079]
[1724348946755,6.2011,2611.0,2610.3,3.83086]
[1724348946955,0.11208966,2610.5,2610.3,3.83086]
[1724348947187,6.2011,2611.0,2610.4,4.3299689]
[1724348947395,2.3711,2611.0,2610.5,3.8306]
[1724348948285,6.20108,2611.0,2610.5,3.8306]
[1724348948853,10.03115,2611.0,2610.3,3.83088]
[1724348949053,6.20108,2611.0,2610.4,3.83081]
[1724348950766,0.11208966,2610.9,2610.4,3.83081]
[1724348950956,0.11208966,2610.9,2610.4,7.66153]
[1724348951265,0.11208966,2610.9,2610.4,5.332873]
[1724348951659,3.94222966,2610.9,2610.4,5.332873]
[1724348952389,3.94222966,2610.9,2610.4,3.83072]
[1724348952892,3.94222966,2610.9,2610.2,11.19103]
[1724348952893,3.83028,2610.8,2610.2,15.02203]
[1724348953070,3.83028,2610.8,2610.3,3.83096]
[1724348953264,0.11120549,2610.7,2610.3,3.83096]
[1724348953590,3.83028,2610.8,2610.3,3.83096]
[1724348953790,0.11120549,2610.6,2610.3,3.83096]
[1724348953994,3.83028,2610.8,2610.3,3.83096]
[1724348954291,0.11120549,2610.5,2610.3,3.83096]
[1724348954481,3.83028,2610.8,2610.3,3.83096]
[1724348954683,0.11120549,2610.4,2610.3,3.83096]
[1724348954884,3.83009,2610.9,2610.4,3.8308]
[1724348956569,6.20108,2611.0,2610.4,7.6616]
[1724348956787,3.8301,2610.9,2610.4,3.83076]
[1724348956987,3.8301,2610.9,2610.4,7.66151]
[1724348957195,10.03115,2611.0,2610.4,4.7471206]
[1724348957397,10.03115,2611.0,2610.4,8.5778706]
[1724348957597,3.8301,2610.9,2610.4,3.83075]
[1724348958001,3.8301,2610.9,2610.4,3.83074]
[1724348959662,3.83032,2610.8,2610.3,3.83096]
[1724348959863,3.83032,2610.8,2610.0,3.83131]
[1724348959864,2.4129,2610.8,2610.0,3.83131]
[1724348960065,3.83075,2610.5,2610.0,3.83131]
[1724348960266,3.83075,2610.5,2610.0,7.66265]
[1724348960470,3.83075,2610.5,2610.0,7.66264]
[1724348961096,6.24338,2610.7,2610.2,3.83112]
[1724348961877,2.4129,2610.7,2610.2,4.597364]
[1724348962192,2.4129,2610.7,2610.2,8.428394]
[1724348962369,2.4129,2610.7,2610.2,4.597274]
[1724348962570,2.4129,2610.7,2610.3,3.83094]
[1724348963281,2.4129,2610.7,2610.3,3.78094]
[1724348964276,2.4129,2610.7,2610.4,3.8308]
[1724348964674,2.4129,2610.7,2610.3,0.8378214]
[1724348964875,2.4129,2610.7,2610.2,8.428254]
[1724348965076,2.4129,2610.7,2610.3,3.83096]
[1724348965410,2.4129,2610.7,2610.2,8.428274]
[1724348965705,2.4129,2610.7,2610.2,7.66201]
[1724348965870,0.11064496,2610.6,2610.3,3.83097]
[1724348966408,0.11064496,2610.6,2610.2,3.83112]
[1724348966776,0.11064496,2610.6,2610.0,3.8313]
[1724348966777,3.94125496,2610.6,2610.0,3.8313]
[1724348967177,3.94125496,2610.6,2610.1,3.83123]
[1724348967483,7.77187496,2610.6,2610.1,3.83123]
[1724348967700,6.09851,2610.5,2610.0,3.8313]
[1724348968083,3.83083,2610.4,2609.9,3.0]
[1724348968289,2.4795,2610.3,2609.9,6.83154]
[1724348968494,2.4795,2610.3,2610.0,3.83139]
[1724348969016,0.11064496,2610.2,2610.1,0.95905971]
[1724348969221,2.4795,2610.3,2610.1,0.95905971]
[1724348969414,2.4795,2610.3,2610.2,0.95905971]
[1724348970418,2.4795,2610.3,2610.0,3.83131]
[1724348970582,2.4795,2610.3,2610.2,0.95906219]
[1724348970784,2.4795,2610.3,2610.0,1.80229]
[1724348971206,2.4795,2610.3,2609.9,6.83149]
[1724348971779,2.4795,2610.3,2610.0,3.83137]
[1724348972423,2.4795,2610.3,2609.9,6.83149]
[1724348973103,6.3105,2610.3,2609.9,3.83149]
[1724348973483,7.324619,2610.3,2609.9,3.83149]
[1724348973878,3.83129,2610.1,2609.6,12.45]
[1724348974078,2.3779,2610.0,2609.6,16.28195]
[1724348974403,2.3779,2610.0,2609.5,3.83212]
[1724348974404,6.20939,2610.0,2609.5,3.83212]
[1724348974916,3.83181,2609.8,2609.2,11.1925]
[1724348975116,6.94161703,2609.7,2609.2,3.8325]
[1724348975621,2.3742,2609.4,2608.9,7.36]
[1724348975818,2.3742,2609.4,2609.1,3.83272]
[1724348976188,2.3742,2609.4,2609.2,3.8325]
[1724348976807,2.3742,2609.4,2609.2,3.83244]
[1724348976998,2.3742,2609.4,2609.3,3.83244]
[1724348977403,6.17522,2609.8,2609.3,3.83244]
[1724348977603,3.83187,2609.7,2609.2,3.83253]
[1724348979195,3.83187,2609.7,2609.2,7.66506]
[1724348979597,3.83187,2609.7,2609.2,3.83253]
[1724348979823,3.83201,2609.6,2609.2,3.83253]
[1724348980029,2.4602,2609.5,2609.2,3.83253]
[1724348980912,2.4602,2609.2,2608.9,7.36]
[1724348981210,2.4602,2609.2,2608.6,3.83337]
[1724348981414,0.10945437,2609.1,2608.8,3.83307]
[1724348981793,0.10945437,2609.1,2608.8,7.66616]
[1724348982005,0.10945437,2609.1,2608.9,3.833]
[1724348982227,0.10945437,2609.1,2608.8,3.83307]
[1724348982526,0.10945437,2609.1,2609.0,3.83288]
[1724348982728,0.10945437,2609.1,2608.9,7.66597]
[1724348982887,2.3781,2609.5,2609.0,3.83288]
[1724348983324,2.3781,2609.5,2609.1,3.83273]
[1724348983503,2.3781,2609.5,2609.1,3.83265]
[1724348983703,2.3781,2609.5,2609.2,3.8325]
[1724348984217,2.3781,2609.5,2609.1,4.38876462]
[1724348984540,3.83239,2609.4,2608.9,3.83289]
[1724348984703,3.83239,2609.4,2608.9,7.66583]
[1724348985430,6.21028,2609.5,2608.9,7.66583]
[1724348985840,6.21028,2609.5,2608.9,3.83289]
[1724348986135,3.83231,2609.4,2608.9,3.83289]
[1724348986333,2.3781,2609.5,2608.9,7.66584]
[1724348986630,6.21027,2609.5,2608.9,7.66584]
[1724348986829,6.21027,2609.5,2609.0,3.83287]
[1724348987241,2.3781,2609.5,2609.1,3.83271]
[1724348988701,2.3781,2609.9,2609.3,3.83236]
[1724348989037,3.83171,2609.8,2609.3,3.83236]
[1724348989799,3.83171,2609.8,2609.3,7.66472]
[1724348989996,2.3781,2609.9,2609.4,3.83228]
[1724348990610,2.4568,2610.1,2609.5,3.83205]
[1724348990811,10.11862,2610.4,2609.8,3.83159]
[1724348991038,3.8312,2610.2,2609.7,3.83183]
[1724348991209,3.8312,2610.2,2609.6,3.952]
[1724348991410,3.83157,2609.9,2609.4,4.598744]
[1724348991639,3.83157,2609.9,2609.4,3.83228]
[1724348992168,3.83157,2609.9,2609.3,7.78441]
[1724348992436,3.83187,2609.7,2609.3,3.83241]
[1724348992610,6.08797,2609.7,2609.2,6.83257]
[1724348992811,6.08797,2609.7,2609.1,11.19262]
[1724348993732,3.832,2609.6,2609.1,11.19262]
[1724348994042,3.93393965,2609.5,2609.1,7.36]
[1724348994212,7.76618965,2609.5,2609.1,7.36]
[1724348994414,3.83231,2609.4,2609.1,7.36]
[1724348994615,2.3823,2609.3,2609.1,7.36]
[1724348994804,2.3823,2609.3,2609.0,3.83284]
[1724348995005,0.10170822,2609.2,2609.0,3.83284]
[1724348995301,2.3823,2609.3,2609.0,3.83284]
[1724348995505,0.10170822,2609.1,2609.0,3.83284]
[1724348995720,2.3823,2609.3,2608.9,3.83303]
[1724348995914,2.3823,2609.3,2609.0,3.83286]
[1724348995915,0.10170822,2609.1,2609.0,3.83286]
[1724348996206,2.3823,2609.3,2609.0,3.83286]
[1724348996404,2.3007,2609.5,2609.1,3.83261]
[1724348996705,2.3007,2609.5,2609.0,7.78486]
[1724348996910,2.3007,2609.5,2609.0,3.83279]
[1724348997226,2.913974,2609.5,2609.0,3.83279]
[1724348998213,2.3007,2609.5,2609.0,3.83279]
[1724348998639,3.83204,2609.6,2609.1,3.83266]
[1724348999164,2.3323,2609.7,2609.2,3.8325]
[1724348999459,6.16423,2609.7,2609.1,3.83266]
[1724348999837,6.16423,2609.7,2609.1,7.66532]
[1724349000227,3.832,2609.6,2609.1,3.83266]
[1724349000423,3.83217,2609.5,2609.0,3.83278]
[1724349000842,2.3124,2609.4,2608.8,3.83317]
[1724349001051,6.14483,2609.4,2608.8,3.83317]
[1724349001258,3.83244,2609.3,2608.8,3.83317]
[1724349001473,7.66497,2609.3,2608.7,18.97847]
[1724349001625,2.2849,2609.2,2608.7,11.1932]
[1724349001826,2.2849,2609.2,2608.8,3.8331]
[1724349002057,3.83229,2609.4,2608.9,7.66596]
[1724349002286,2.2849,2609.5,2609.1,3.83271]
[1724349002585,2.2849,2609.5,2609.0,7.78486]
[1724349002895,6.11712,2609.5,2609.0,7.78486]
[1724349003034,6.11712,2609.5,2608.9,3.83292]
[1724349003035,7.112029,2609.5,2608.9,3.83292]
[1724349003236,7.112029,2609.5,2609.0,3.83283]
[1724349004368,6.13594,2609.7,2609.2,3.83257]
[1724349004533,6.13593,2609.7,2609.2,3.83257]
[1724349004943,2.304,2609.7,2609.3,3.83243]
[1724349005266,2.304,2609.7,2609.3,4.215573]
[1724349005494,2.304,2609.7,2609.3,3.83233]
[1724349006884,6.17683,2610.0,2609.4,7.66438]
[1724349007079,10.00833,2610.0,2609.4,3.83218]
[1724349007450,6.17683,2610.0,2609.4,7.6644]
[1724349007650,10.00833,2610.0,2609.4,3.83218]
[1724349007842,10.00833,2610.0,2609.4,7.6644]
[1724349007843,6.17683,2610.0,2609.4,7.6644]
[1724349008059,10.00834,2610.0,2609.4,3.83218]
[1724349008254,6.17683,2610.0,2609.4,3.83218]
[1724349008461,6.17683,2610.0,2609.5,4.848568]
[1724349008660,2.3454,2610.0,2609.6,3.83197]
[1724349009353,2.3454,2610.0,2609.6,3.83192]
[1724349009548,6.17683,2610.0,2609.5,3.83214]
[1724349010260,3.83166,2609.9,2609.3,6.3328]
[1724349010464,3.83166,2609.9,2609.4,3.83228]
[1724349010796,3.83165,2609.9,2609.4,3.83228]
[1724349010966,0.09739869,2609.8,2609.4,7.6645]
[1724349011170,0.09739869,2609.8,2609.5,3.83214]
[1724349013094,2.3454,2610.0,2609.5,3.83214]
[1724349013264,0.09739869,2609.7,2609.5,3.83214]
[1724349013475,3.83104,2610.3,2609.6,3.83198]
[1724349013676,2.3719,2610.2,2609.8,3.8317]
[1724349014201,2.3719,2610.4,2610.0,3.83139]
[1724349015079,6.20273,2610.4,2609.8,7.66322]